bitfinex/quotes_SOLUSD_20250413
["timestamp","ask_amount","ask_price","bid_price","bid_amount"]
[1744567513789,0.063,131.69,131.67,16.17022311]
[1744567514490,0.063,131.69,131.65,7.5958]
[1744567514691,0.063,131.69,131.66,16.17022311]
[1744567514878,0.063,131.69,131.64,16.17022311]
[1744567515194,7.5941,131.68,131.64,16.17022311]
[1744567515393,23.76432311,131.68,131.63,9.76]
[1744567515696,23.76432311,131.68,131.63,25.93022311]
[1744567516474,0.063,131.69,131.65,16.17022311]
[1744567516693,23.82692311,131.69,131.64,16.17022311]
[1744567517369,23.82692311,131.69,131.64,23.76652311]
[1744567517788,23.82692311,131.69,131.64,16.17022311]
[1744567518696,16.17022311,131.68,131.63,25.93022311]
[1744567519076,23.82692311,131.69,131.64,16.17022311]
[1744567519577,7.6567,131.69,131.65,16.17022311]
[1744567519777,7.6567,131.69,131.66,16.17022311]
[1744567519975,7.6567,131.69,131.67,16.17022311]
[1744567519976,0.063,131.69,131.67,16.17022311]
[1744567520182,0.063,131.69,131.68,16.17022311]
[1744567520383,0.063,131.69,131.68,51.13225665]
[1744567520675,0.03,131.7,131.69,0.28432314]
[1744567520985,0.03,131.7,131.69,16.17022311]
[1744567523989,0.03,131.7,131.68,16.17022311]
[1744567524395,0.03,131.7,131.69,16.17022311]
[1744567524580,0.03,131.7,131.68,16.17022311]
[1744567525599,0.03,131.7,131.66,7.5951]
[1744567525797,0.03,131.7,131.68,16.17022311]
[1744567526093,0.03,131.7,131.69,16.17022311]
[1744567526286,0.03,131.7,131.68,16.17022311]
[1744567526805,0.03,131.7,131.66,7.5951]
[1744567527005,0.03,131.7,131.68,16.17022311]
[1744567527685,0.03,131.7,131.67,16.17022311]
[1744567528994,0.03,131.7,131.66,16.17022311]
[1744567529195,0.03,131.7,131.65,16.17022311]
[1744567529196,16.20022311,131.7,131.65,16.17022311]
[1744567529501,16.17022311,131.68,131.63,25.93022311]
[1744567529690,16.17022311,131.68,131.64,0.19]
[1744567529880,16.17022311,131.67,131.64,0.19]
[1744567530077,16.17022311,131.69,131.64,16.36022311]
[1744567530278,16.20022311,131.7,131.65,16.17022311]
[1744567531201,23.76372311,131.69,131.64,16.17022311]
[1744567531792,16.17022311,131.68,131.63,25.93022311]
[1744567532105,7.5935,131.69,131.64,16.17022311]
[1744567532605,7.5935,131.69,131.65,16.17022311]
[1744567532983,23.76372311,131.69,131.64,16.17022311]
[1744567533187,16.17022311,131.65,131.59,7.5993]
[1744567533404,16.17022311,131.65,131.6,16.36022311]
[1744567533582,16.17022311,131.64,131.6,0.19]
[1744567533994,16.17022311,131.64,131.58,7.5998]
[1744567534312,16.17022311,131.64,131.59,16.17022311]
[1744567534701,16.17022311,131.65,131.6,16.17022311]
[1744567534903,6.0957,131.66,131.6,16.17022311]
[1744567535105,7.5963,131.65,131.61,16.17022311]
[1744567536605,7.5963,131.65,131.58,26.533872]
[1744567536809,7.5963,131.65,131.6,16.17022311]
[1744567536810,23.76652311,131.65,131.6,16.17022311]
[1744567538108,16.17022311,131.64,131.59,16.17022311]
[1744567538292,16.17022311,131.63,131.58,16.17022311]
[1744567539325,16.17022311,131.61,131.57,9.783]
[1744567539508,7.5976,131.63,131.57,9.783]
[1744567539509,16.17022311,131.6,131.57,9.783]
[1744567539713,16.17022311,131.59,131.57,0.063]
[1744567540624,23.76972311,131.59,131.57,0.063]
[1744567540799,7.5995,131.59,131.57,0.063]
[1744567542006,16.17022311,131.58,131.57,0.063]
[1744567543728,42.84625668,131.58,131.57,0.063]
[1744567544094,1.75516157,131.57,131.56,0.063]
[1744567544416,26.14216157,131.54,131.53,0.063]
[1744567544715,42.31238468,131.54,131.53,0.063]
[1744567545810,49.91458468,131.54,131.53,0.063]
[1744567546313,68.84855668,131.54,131.53,0.063]
[1744567548210,74.97545668,131.54,131.53,0.0001]
[1744567548410,0.14216157,131.53,131.52,0.063]
[1744567548711,0.14216157,131.53,131.51,0.063]
[1744567548712,119.66845668,131.53,131.51,0.063]
[1744567548914,16.31238468,131.52,131.51,0.063]
[1744567549421,0.14216157,131.51,131.45,0.03]
[1744567549598,16.31238468,131.51,131.45,0.03]
[1744567550503,23.91628468,131.51,131.45,0.03]
[1744567550905,125.75025668,131.51,131.5,0.0001]
[1744567551409,106.67412311,131.51,131.5,0.0001]
[1744567551602,7.6039,131.51,131.5,0.0001]
[1744567552109,7.6034,131.52,131.5,0.0001]
[1744567552813,23.77362311,131.52,131.5,0.0001]
[1744567553121,16.17022311,131.51,131.5,0.0001]
[1744567553323,7.6034,131.52,131.5,0.0001]
[1744567553824,23.77362311,131.52,131.5,0.0001]
[1744567554619,23.77412311,131.51,131.5,0.0001]
[1744567555018,7.6039,131.51,131.5,0.0001]
[1744567555627,7.6034,131.52,131.5,0.0001]
[1744567555825,25.29532311,131.53,131.5,0.0001]
[1744567559129,1.6138,131.56,131.5,16.17032311]
[1744567559327,7.6009,131.57,131.53,16.17022311]
[1744567559706,6.0262,131.58,131.54,16.17022311]
[1744567559906,17.92618468,131.59,131.54,16.17022311]
[1744567560825,7.5989,131.6,131.56,16.17022311]
[1744567561026,16.17022311,131.59,131.54,16.17022311]
[1744567561331,16.17022311,131.58,131.52,16.17022311]
[1744567561511,19.07613357,131.59,131.51,7.6039]
[1744567561712,16.17022311,131.57,131.52,16.17022311]
[1744567561937,16.17022311,131.58,131.53,16.17022311]
[1744567562141,16.17022311,131.58,131.51,7.6039]
[1744567562142,96.66676157,131.61,131.55,16.17022311]
[1744567562315,29.93698468,131.61,131.56,16.17022311]
[1744567562521,29.93698468,131.61,131.55,16.17022311]
[1744567562828,16.17022311,131.59,131.54,16.17022311]
[1744567563016,16.17022311,131.58,131.52,7.6034]
[1744567563216,16.17022311,131.58,131.53,16.17022311]
[1744567563422,0.14216157,131.59,131.52,23.77362311]
[1744567563611,16.17022311,131.58,131.52,23.77362311]
[1744567563812,16.17022311,131.57,131.52,16.17022311]
[1744567564134,16.17022311,131.56,131.51,16.17022311]
[1744567564314,16.17022311,131.54,131.5,0.0001]
[1744567564523,16.17022311,131.51,131.5,0.0001]
[1744567564824,34.96203354,131.51,131.5,0.0001]
[1744567565128,51.90836078,131.51,131.5,0.0001]
[1744567565521,70.98449435,131.51,131.5,0.0001]
[1744567566721,78.58839435,131.51,131.5,0.0001]
[1744567566922,101.97613357,131.5,131.48,0.063]
[1744567567127,26.14216157,131.46,131.45,0.03]
[1744567567428,77.37949435,131.46,131.45,0.03]
[1744567568639,84.98629435,131.46,131.45,0.03]
[1744567570222,26.0,131.46,131.45,0.03]
[1744567570529,59.51516078,131.46,131.45,0.03]
[1744567572534,26.0,131.46,131.45,0.03]
[1744567572736,25.90836078,131.47,131.45,0.03]
[1744567572947,26.05052235,131.46,131.45,0.03]
[1744567574026,0.14216157,131.46,131.45,0.03]
[1744567574226,26.05052235,131.46,131.45,0.03]
[1744567574919,33.65732235,131.46,131.45,0.03]
[1744567575124,26.05052235,131.46,131.45,0.03]
[1744567575337,25.90836078,131.46,131.45,0.03]
[1744567575542,26.539772,131.48,131.45,0.03]
[1744567575543,25.90836078,131.47,131.45,0.03]
[1744567575742,25.90836078,131.46,131.45,0.03]
[1744567577039,51.90836078,131.46,131.45,0.03]
[1744567577342,78.59129435,131.46,131.45,0.03]
[1744567578934,51.90836078,131.46,131.45,0.03]
[1744567579135,33.51486078,131.47,131.45,0.03]
[1744567579529,25.90836078,131.46,131.45,0.03]
[1744567579851,33.51516078,131.46,131.45,0.03]
[1744567580230,25.90836078,131.46,131.45,0.03]
[1744567581149,26.05052235,131.48,131.45,0.03]
[1744567581731,25.90836078,131.49,131.45,0.03]
[1744567581944,25.90836078,131.49,131.45,7.6374]
[1744567583753,108.80836078,131.5,131.45,33.54576078]
[1744567584154,9.1135,131.54,131.49,25.90836078]
[1744567584339,0.14216157,131.55,131.51,25.90836078]
[1744567584547,9.7,131.57,131.52,25.90836078]
[1744567584736,25.90836078,131.57,131.52,25.90836078]
[1744567585252,99.07536079,131.59,131.54,16.17536079]
[1744567585452,8.32936157,131.6,131.54,7.6022]
[1744567585453,16.17536079,131.58,131.54,7.6022]
[1744567586257,16.17536079,131.57,131.51,7.6039]
[1744567586456,16.17536079,131.57,131.52,16.17536079]
[1744567587134,16.17536079,131.57,131.51,7.6039]
[1744567587135,25.88687858,131.56,131.51,33.49077858]
[1744567588431,33.48807858,131.56,131.51,7.6039]
[1744567588637,25.88687858,131.54,131.49,33.49177858]
[1744567588848,25.88687858,131.53,131.49,7.6049]
[1744567589045,0.14216157,131.55,131.5,28.70828436]
[1744567589364,25.88687858,131.56,131.51,25.88687858]
[1744567590438,26.39241043,131.57,131.53,25.88687858]
[1744567590439,0.14216157,131.57,131.53,25.88687858]
[1744567590640,26.02904015,131.57,131.52,25.88687858]
[1744567590845,0.14216157,131.57,131.53,25.88687858]
[1744567591660,108.78687858,131.59,131.53,25.88687858]
[1744567591877,108.78687858,131.59,131.54,25.88687858]
[1744567592353,25.88687858,131.59,131.54,33.48867858]
[1744567592549,25.88687858,131.58,131.54,7.6018]
[1744567593146,26.02904015,131.59,131.54,33.48867858]
[1744567593658,25.88687858,131.61,131.55,25.88687858]
[1744567594061,92.72216157,131.62,131.55,25.88687858]
[1744567594062,25.88687858,131.6,131.55,25.88687858]
[1744567594763,26.02904015,131.61,131.55,25.88687858]
[1744567595263,25.88687858,131.6,131.55,25.88687858]
[1744567595781,25.88687858,131.6,131.56,7.601]
[1744567596566,33.62724015,131.61,131.56,7.601]
[1744567596762,26.02904015,131.61,131.56,33.48787858]
[1744567597143,0.14216157,131.61,131.56,33.48787858]
[1744567597346,0.14216157,131.62,131.58,25.88687858]
[1744567597547,33.54727858,131.63,131.58,25.88687858]
[1744567597764,25.88687858,131.61,131.56,33.48787858]
[1744567598874,25.88687858,131.59,131.53,7.6028]
[1744567599080,26.02904015,131.61,131.55,25.88687858]
[1744567599261,25.88687858,131.6,131.55,25.88687858]
[1744567599453,25.88687858,131.59,131.54,25.88687858]
[1744567599871,25.88687858,131.6,131.55,25.88687858]
[1744567600065,0.063,131.63,131.59,25.88687858]
[1744567600267,0.063,131.63,131.62,25.88687858]
[1744567600654,0.063,131.63,131.62,26.17120172]
[1744567600969,0.063,131.68,131.63,19.07613357]
[1744567601151,0.063,131.68,131.67,25.88687858]
[1744567601355,0.063,131.68,131.65,25.88687858]
[1744567601653,0.063,131.68,131.64,25.88687858]
[1744567601857,0.063,131.68,131.65,33.48217858]
[1744567602078,0.063,131.68,131.66,25.88687858]
[1744567602547,0.063,131.68,131.67,25.88687858]
[1744567602945,0.063,131.68,131.66,25.88687858]
[1744567603270,0.063,131.68,131.67,0.19]
[1744567603475,0.063,131.68,131.67,26.07687858]
[1744567603864,0.063,131.68,131.67,0.19]
[1744567604979,0.063,131.68,131.67,26.07687858]
[1744567605500,0.063,131.68,131.67,33.67157858]
[1744567607061,0.063,131.68,131.67,33.95590172]
[1744567608675,0.063,131.68,131.67,33.67157858]
[1744567609580,0.063,131.68,131.67,33.95590172]
[1744567611379,0.063,131.68,131.67,33.67157858]
[1744567613172,0.063,131.68,131.67,7.7847]
[1744567613372,0.063,131.68,131.67,33.67157858]
[1744567616478,0.063,131.68,131.67,78.63459073]
[1744567616870,0.03,131.7,131.69,0.28432314]
[1744567617066,0.03,131.7,131.69,44.96301215]
[1744567617260,0.063,131.71,131.7,18.79181043]
[1744567617467,0.0001,131.71,131.7,44.96301215]
[1744567617776,0.0001,131.71,131.7,25.88687858]
[1744567618366,0.0001,131.71,131.7,33.47987858]
[1744567620180,0.0001,131.71,131.7,52.55601215]
[1744567620369,0.063,131.72,131.71,0.28432314]
[1744567620570,0.063,131.72,131.71,26.17120172]
[1744567620870,0.063,131.72,131.71,44.96301215]
[1744567621480,0.063,131.74,131.73,0.28432314]
[1744567621673,0.063,131.74,131.73,35.79120172]
[1744567621875,0.063,131.74,131.73,54.58301215]
[1744567622169,0.063,131.76,131.75,0.28432314]
[1744567622376,0.063,131.76,131.75,52.55311215]
[1744567623788,0.063,131.77,131.76,18.79181043]
[1744567624096,0.03,131.79,131.76,70.84989073]
[1744567624277,0.03,131.79,131.77,44.82085058]
[1744567624477,0.03,131.79,131.78,25.88687858]
[1744567625370,0.03,131.79,131.78,44.82085058]
[1744567625569,0.03,131.79,131.78,52.40925058]
[1744567626687,0.03,131.8,131.79,0.28432314]
[1744567626871,0.03,131.82,131.8,0.14216157]
[1744567627076,0.03,131.82,131.8,26.02904015]
[1744567627469,0.03,131.82,131.81,18.64964886]
[1744567627674,0.03,131.82,131.81,52.40745058]
[1744567628276,0.0001,131.82,131.81,52.54961215]
[1744567628473,1.5482,131.91,131.83,26.0]
[1744567628784,1.5482,131.91,131.89,25.88687858]
[1744567628985,1.5482,131.91,131.85,9.62]
[1744567629186,32.54567858,131.94,131.89,25.88687858]
[1744567629412,6.6588,131.94,131.92,25.88687858]
[1744567629695,1.6346,131.96,131.92,25.88687858]
[1744567629886,9.2127,131.96,131.9,25.88687858]
[1744567630087,35.09957858,131.96,131.91,25.88687858]
[1744567630292,9.2127,131.96,131.91,25.88687858]
[1744567630487,9.2127,131.96,131.92,25.88687858]
[1744567630488,1.6346,131.96,131.92,25.88687858]
[1744567630687,6.6588,131.97,131.94,25.88687858]
[1744567630876,6.6588,131.97,131.91,25.88687858]
[1744567630877,25.88687858,131.96,131.91,25.88687858]
[1744567631077,14.2363,131.97,131.9,25.88687858]
[1744567631276,25.88687858,131.94,131.89,25.88687858]
[1744567631477,27.52147858,131.93,131.88,25.88687858]
[1744567631691,27.52147858,131.93,131.88,33.46927858]
[1744567631877,9.2143,131.93,131.89,25.88687858]
[1744567632074,35.10117858,131.93,131.88,25.88687858]
[1744567632280,9.2143,131.93,131.88,25.88687858]
[1744567632477,35.10117858,131.93,131.88,25.88687858]
[1744567633303,9.2143,131.93,131.89,25.88687858]
[1744567633489,1.6346,131.93,131.91,25.88687858]
[1744567634479,8.2934,131.97,131.92,25.88687858]
[1744567634793,8.2934,131.97,131.94,25.88687858]
[1744567634986,8.2934,131.97,131.95,25.88687858]
[1744567635186,25.88687858,131.99,131.94,25.88687858]
[1744567635391,25.88687858,131.98,131.93,25.88687858]
[1744567635778,33.46387858,131.98,131.93,25.88687858]
[1744567635978,7.1588,132.0,131.94,25.88687858]
[1744567636182,33.46337858,131.99,131.94,25.88687858]
[1744567636503,40.62157858,132.0,131.94,25.88687858]
[1744567636893,33.04567858,132.0,131.95,25.88687858]
[1744567637205,7.1588,132.0,131.95,25.88687858]
[1744567637393,14.7345,132.0,131.95,25.88687858]
[1744567637597,14.7345,132.0,131.93,7.5796]
[1744567637904,14.7345,132.0,131.95,25.88687858]
[1744567637905,7.1588,132.0,131.95,25.88687858]
[1744567638199,0.5,132.0,131.99,25.88687858]
[1744567639796,0.5,132.0,131.98,9.62]
[1744567640003,0.5,132.0,131.99,25.88687858]
[1744567641205,0.5,132.0,131.98,17.1967]
[1744567641405,0.5,132.0,131.98,9.62]
[1744567641615,0.5,132.0,131.99,25.88687858]
[1744567641993,0.5,132.0,131.98,17.1967]
[1744567641994,0.5,132.0,131.98,9.62]
[1744567642385,0.5,132.0,131.99,25.88687858]
[1744567643902,35.09447858,132.05,131.99,33.46277858]
[1744567644104,35.09447858,132.05,132.0,25.88687858]
[1744567644287,1.6346,132.05,132.02,25.88687858]
[1744567644492,25.88687858,132.04,131.99,7.5759]
[1744567644798,25.88687858,132.03,131.98,43.08367858]
[1744567645006,9.2075,132.05,131.98,43.08367858]
[1744567645206,25.88687858,132.04,131.99,25.88687858]
[1744567645515,1.6346,132.05,132.02,25.88687858]
[1744567646102,1.6346,132.05,132.01,25.88687858]
[1744567646301,25.88687858,132.04,131.99,33.46297858]
[1744567646503,27.52147858,132.05,132.0,25.88687858]
[1744567646808,1.6346,132.05,132.01,25.88687858]
[1744567648215,0.03,132.06,132.03,25.88687858]
[1744567648414,0.03,132.06,132.02,25.88687858]
[1744567648998,0.03,132.06,132.01,7.5747]
[1744567649432,0.03,132.06,132.02,25.88687858]
[1744567650334,0.03,132.06,132.04,25.88687858]
[1744567650528,0.03,132.06,132.05,25.88687858]
[1744567651114,0.03,132.06,132.03,7.574]
[1744567651333,0.03,132.06,132.05,25.88687858]
[1744567652206,0.03,132.06,132.05,33.45967858]
[1744567653146,0.03,132.06,132.03,28.515]
[1744567653147,0.03,132.06,132.03,9.58]
[1744567653304,0.03,132.06,132.03,17.154]
[1744567653504,0.03,132.06,132.03,43.04087858]
[1744567653814,0.03,132.06,132.04,25.88687858]
[1744567654215,0.03,132.06,132.03,43.04087858]
[1744567654520,0.03,132.06,132.03,9.58]
[1744567655325,0.03,132.06,132.03,35.46687858]
[1744567655525,0.03,132.06,132.03,9.58]
[1744567657333,0.03,132.06,132.03,35.46687858]
[1744567658034,0.03,132.06,132.04,25.88687858]
[1744567658212,0.03,132.06,132.05,25.88687858]
[1744567659710,0.03,132.06,132.05,45.01085058]
[1744567660043,0.03,132.06,132.05,45.15301215]
[1744567660227,0.03,132.06,132.05,52.72581215]
[1744567660409,2.6698401,132.11,132.06,0.14216157]
[1744567660614,2.6698401,132.11,132.06,0.28432314]
[1744567660832,2.6698401,132.11,132.09,25.88687858]
[1744567661049,2.6698401,132.11,132.1,25.88687858]
[1744567661418,2.6698401,132.11,132.1,44.82085058]
[1744567661615,2.6698401,132.11,132.1,45.01085058]
[1744567661824,2.6698401,132.11,132.1,26.07687858]
[1744567662231,2.6698401,132.11,132.1,33.64687858]
[1744567664014,2.6698401,132.11,132.1,52.58085058]
[1744567664723,2.6698401,132.11,132.1,52.72301215]
[1744567664929,4.01e-05,132.11,132.1,52.72301215]
[1744567665129,4.01e-05,132.12,132.11,18.933972]
[1744567665428,4.01e-05,132.12,132.11,26.07687858]
[1744567665610,4.01e-05,132.12,132.11,45.15301215]
[1744567665818,4.01e-05,132.12,132.11,45.01085058]
[1744567666225,4.01e-05,132.12,132.11,52.58025058]
[1744567666419,4.01e-05,132.12,132.11,52.72241215]
[1744567666626,4.2076049,132.12,132.11,52.58025058]
[1744567666819,4.2076049,132.12,132.11,33.64627858]
[1744567667541,4.2076049,132.12,132.11,52.58025058]
[1744567668833,0.03,132.2,132.15,44.64964886]
[1744567669012,0.03,132.2,132.17,18.64964886]
[1744567669211,0.03,132.2,132.19,25.88687858]
[1744567669617,0.03,132.2,132.17,18.64964886]
[1744567669812,0.03,132.2,132.17,25.88687858]
[1744567670011,25.91687858,132.2,132.16,9.56]
[1744567670212,0.03,132.2,132.17,25.88687858]
[1744567670448,0.03,132.2,132.19,25.88687858]
[1744567671026,0.151,132.23,132.16,0.28432314]
[1744567671228,0.151,132.23,132.2,25.88687858]
[1744567671528,0.151,132.23,132.19,25.88687858]
[1744567672053,26.03787858,132.23,132.19,25.88687858]
[1744567672240,7.7139,132.23,132.14,26.4864]
[1744567672443,7.7139,132.23,132.18,25.88687858]
[1744567672444,33.60077858,132.23,132.18,25.88687858]
[1744567672641,0.151,132.23,132.19,25.88687858]
[1744567672837,0.151,132.23,132.2,25.88687858]
[1744567673158,6.5425,132.24,132.22,25.88687858]
[1744567673325,6.5425,132.24,132.23,25.88687858]
[1744567673516,6.5425,132.24,132.22,25.88687858]
[1744567673725,6.5425,132.24,132.18,0.42648471]
[1744567673941,6.5425,132.24,132.21,25.88687858]
[1744567674124,6.5425,132.24,132.22,25.88687858]
[1744567674455,6.5425,132.24,132.21,25.88687858]
[1744567674823,6.5425,132.24,132.2,25.88687858]
[1744567675026,6.5425,132.24,132.22,25.88687858]
[1744567675331,6.5425,132.24,132.21,25.88687858]
[1744567676122,6.5425,132.24,132.19,7.5648]
[1744567676123,6.5425,132.24,132.2,25.88687858]
[1744567676323,14.1045,132.24,132.2,25.88687858]
[1744567676524,6.5425,132.24,132.2,25.88687858]
[1744567677127,6.5425,132.24,132.2,33.45107858]
[1744567677538,6.5425,132.24,132.2,25.88687858]
[1744567678042,6.5425,132.24,132.22,25.88687858]
[1744567678221,6.5425,132.24,132.21,25.88687858]
[1744567678421,6.5425,132.24,132.2,25.88687858]
[1744567678631,32.42937858,132.24,132.2,25.88687858]
[1744567679044,39.99137858,132.24,132.19,25.88687858]
[1744567679442,6.5425,132.24,132.2,25.88687858]
[1744567679748,6.5425,132.24,132.21,25.88687858]
[1744567680136,6.5425,132.24,132.2,25.88687858]
[1744567680336,6.5425,132.24,132.2,33.45097858]
[1744567680927,6.5425,132.24,132.21,25.88687858]
[1744567681150,6.5425,132.24,132.2,16.01046611]
[1744567682446,30.11496611,132.24,132.19,23.57516611]
[1744567682647,6.5425,132.24,132.19,7.5647]
[1744567682833,16.01046611,132.2,132.12,7.5688]
[1744567683038,16.01046611,132.17,132.12,23.57926611]
[1744567683352,6.5425,132.19,132.13,16.01046611]
[1744567683647,16.01046611,132.18,132.13,16.01046611]
[1744567683844,6.5425,132.19,132.15,16.01046611]
[1744567684045,17.63146611,132.21,132.16,16.01046611]
[1744567684343,1.621,132.21,132.17,16.01046611]
[1744567684545,1.621,132.21,132.18,16.01046611]
[1744567684847,6.3704,132.22,132.2,16.01046611]
[1744567685050,6.3704,132.22,132.19,16.01046611]
[1744567685246,6.3704,132.22,132.17,7.5657]
[1744567685450,6.3704,132.22,132.18,16.01046611]
[1744567685655,29.94396611,132.22,132.17,16.01046611]
[1744567685949,13.9335,132.22,132.17,16.01046611]
[1744567686253,13.9335,132.22,132.16,7.5665]
[1744567686449,6.3704,132.22,132.21,16.01046611]
[1744567686650,6.3704,132.22,132.19,16.01046611]
[1744567687557,6.3704,132.22,132.16,26.4829]
[1744567687734,16.01046611,132.21,132.16,16.01046611]
[1744567688051,16.01046611,132.2,132.15,23.57746611]
[1744567688868,7.5642,132.21,132.15,23.57746611]
[1744567689042,23.57466611,132.21,132.16,16.01046611]
[1744567689349,23.57466611,132.21,132.15,7.567]
[1744567689659,16.01046611,132.2,132.15,23.57746611]
[1744567689947,16.01046611,132.21,132.16,16.01046611]
[1744567690154,6.3704,132.22,132.18,16.01046611]
[1744567690342,6.3704,132.22,132.19,16.01046611]
[1744567690738,6.3704,132.22,132.16,16.01046611]
[1744567690943,6.3704,132.22,132.19,16.01046611]
[1744567691142,6.3704,132.22,132.19,25.62070211]
[1744567691344,6.3704,132.22,132.2,25.62070211]
[1744567691543,6.3704,132.22,132.19,25.62070211]
[1744567691743,6.3704,132.22,132.2,25.62070211]
[1744567691948,1.6317,132.24,132.21,33.18420211]
[1744567692143,1.6317,132.24,132.17,9.54]
[1744567692336,31.69290211,132.2,132.13,7.5683]
[1744567692528,6.0722,132.2,132.13,26.489]
[1744567692729,6.0722,132.2,132.18,25.62070211]
[1744567692934,25.62070211,132.23,132.14,2.77057082]
[1744567692935,1.6317,132.24,132.19,25.62070211]
[1744567693141,34.81450211,132.24,132.19,25.62070211]
[1744567693346,9.1938,132.24,132.19,25.62070211]
[1744567693654,1.6317,132.24,132.2,25.62070211]
[1744567694057,9.1937,132.24,132.19,7.5645]
[1744567694259,9.1937,132.24,132.2,25.62070211]
[1744567694551,9.1937,132.24,132.19,7.5645]
[1744567694758,9.1937,132.24,132.2,25.62070211]
[1744567695257,1.6317,132.24,132.2,25.62070211]
[1744567695854,34.81440211,132.24,132.19,33.18520211]
[1744567696054,25.62070211,132.23,132.17,7.566]
[1744567696248,25.62070211,132.23,132.18,25.62070211]
[1744567696453,25.62070211,132.23,132.17,7.566]
[1744567696650,9.1937,132.24,132.18,25.62070211]
[1744567696854,34.81440211,132.24,132.19,25.62070211]
[1744567697059,9.1937,132.24,132.19,25.62070211]
[1744567697244,34.81440211,132.24,132.18,25.62070211]
[1744567697438,7.5631,132.22,132.17,7.566]
[1744567697635,25.62070211,132.21,132.15,7.5671]
[1744567697841,25.62070211,132.19,132.13,9.603]
[1744567698133,25.62070211,132.19,132.14,25.62070211]
[1744567698555,32.28230211,132.2,132.15,25.62070211]
[1744567699058,25.62070211,132.17,132.13,0.063]
[1744567699469,25.12070211,132.17,132.13,0.063]
[1744567699657,32.68670211,132.17,132.13,0.063]
[1744567699859,7.566,132.17,132.13,0.063]
[1744567700061,25.62070211,132.16,132.13,0.063]
[1744567700260,25.62070211,132.17,132.13,0.063]
[1744567700580,25.62070211,132.16,132.13,0.063]
[1744567701246,25.62070211,132.15,132.13,0.063]
[1744567701460,26.4792,132.18,132.13,0.063]
[1744567701658,7.5674,132.15,132.13,0.063]
[1744567702165,33.18740211,132.16,132.13,0.063]
[1744567703264,31.70280211,132.14,132.13,0.063]
[1744567703451,33.26980211,132.14,132.13,0.063]
[1744567704163,15.2168,132.14,132.13,0.063]
[1744567704366,7.6491,132.14,132.13,0.063]
[1744567704554,33.26980211,132.14,132.13,0.063]
[1744567704755,7.6491,132.14,132.13,0.063]
[1744567705156,40.83590211,132.17,132.13,0.063]
[1744567705467,25.62070211,132.16,132.13,0.063]
[1744567705672,40.83590211,132.17,132.13,0.063]
[1744567705846,25.62070211,132.16,132.13,0.063]
[1744567706045,40.83590211,132.17,132.13,0.063]
[1744567706253,25.62070211,132.16,132.13,0.063]
[1744567706663,7.6491,132.17,132.13,0.063]
[1744567706981,33.26980211,132.17,132.13,0.063]
[1744567707272,7.6491,132.17,132.13,0.063]
[1744567707660,7.6491,132.17,132.13,33.25190211]
[1744567708771,7.6491,132.17,132.13,0.063]
[1744567708973,25.62070211,132.15,132.13,0.063]
[1744567709270,7.6491,132.17,132.13,0.063]
[1744567709456,7.6491,132.17,132.13,25.68370211]
[1744567709779,7.6491,132.17,132.14,25.62070211]
[1744567710067,13.6466,132.2,132.14,25.62070211]
[1744567710281,6.0821,132.2,132.16,25.62070211]
[1744567710773,6.0821,132.2,132.17,25.62070211]
[1744567710972,13.6464,132.2,132.16,7.5662]
[1744567711165,6.0821,132.2,132.16,25.62070211]
[1744567711868,13.6464,132.2,132.16,25.62070211]
[1744567712877,1.567,132.21,132.17,33.18650211]
[1744567713254,1.567,132.21,132.17,23.58412686]
[1744567713456,13.7896,132.23,132.18,16.01832686]
[1744567713661,6.2269,132.23,132.19,16.01832686]
[1744567713870,1.5762,132.24,132.21,16.01832686]
[1744567714081,1.5762,132.24,132.17,26.4808]
[1744567714257,16.01832686,132.21,132.16,16.01832686]
[1744567714458,16.01832686,132.2,132.15,16.01832686]
[1744567715283,23.58282686,132.2,132.15,23.58512686]
[1744567715489,16.01832686,132.19,132.15,7.5668]
[1744567715689,14.0754,132.21,132.15,23.58512686]
[1744567715861,16.01832686,132.2,132.15,23.58512686]
[1744567716483,6.5113,132.21,132.16,16.01832686]
[1744567716682,22.52962686,132.21,132.16,16.01832686]